fUST/lending_fUST_20250821
["ID","MTS","AMOUNT","RATE_DAILY","PERIOD"]
[380418930,1755751854523,-205.932385,0.00022465,7]
[380418931,1755751854532,-205.932385,0.00022465,7]
[380418932,1755751854542,-159.707259,0.00022465,7]
[380418933,1755751854551,-159.707259,0.00022465,7]
[380418934,1755751854561,-151.0,0.00022465,7]
[380418935,1755751854570,-159.707259,0.00022465,7]
[380418936,1755751854580,-480.0,0.00022465,3]
[380418937,1755751854589,-480.0,0.00022465,3]
[380418938,1755751854599,-600.92,0.00022465,3]
[380418939,1755751854608,-480.0,0.00022465,3]
[380418940,1755751854618,-480.0,0.00022465,3]
[380418941,1755751854627,-608.95,0.00022465,3]
[380418942,1755751854637,-480.0,0.00022465,3]
[380418943,1755751854646,-480.0,0.00022465,3]
[380418944,1755751854655,-1390.66,0.00022465,3]
[380418945,1755751854665,-151.0,0.00022465,7]
[380418946,1755751854675,-151.0,0.00022465,7]
[380418947,1755751854687,-480.0,0.00022465,3]
[380418948,1755751854697,-480.0,0.00022465,3]
[380418949,1755751854706,-480.0,0.00022465,3]
[380418950,1755751854716,-151.0,0.00022465,7]
[380418951,1755751854725,-480.0,0.00022465,3]
[380418952,1755751854734,-2377.53,0.00022465,3]
[380418953,1755751854743,-480.0,0.00022465,3]
[380418954,1755751854753,-480.0,0.00022465,3]
[380418955,1755751854763,-480.0,0.00022465,3]
[380418956,1755751854773,-480.0,0.00022465,3]
[380418957,1755751854782,-480.0,0.00022465,3]
[380418958,1755751854792,-480.0,0.00022465,3]
[380418959,1755751854801,-480.0,0.00022465,3]
[380418960,1755751854811,-480.0,0.00022465,3]
[380418961,1755751854820,-1059.14,0.00022465,3]
[380418962,1755751854830,-480.0,0.00022465,3]
[380418963,1755751854839,-151.0,0.00022465,7]
[380418964,1755751854849,-151.0,0.00022465,7]
[380418965,1755751854859,-464.15662002,0.00022465,3]
[380418966,1755751854869,-151.0,0.00022465,7]
[380418967,1755751854878,-1223.05,0.00022465,3]
[380418968,1755751854888,-721.45,0.00022465,3]
[380418969,1755751854897,-151.0,0.00022465,7]
[380418970,1755751854906,-480.0,0.00022465,3]
[380418971,1755751854916,-195.841517,0.00022465,7]
[380418972,1755751854925,-480.0,0.00022465,3]
[380418973,1755751854933,-555.28,0.00022465,3]
[380418974,1755751854942,-711.71,0.00022465,3]
[380418975,1755751854951,-480.0,0.00022465,3]
[380418976,1755751854960,-574.75,0.00022465,3]
[380418977,1755751854970,-333.26683667,0.00022465,3]
[380418978,1755751854979,-480.0,0.00022465,3]
[380418979,1755751854988,-480.0,0.00022465,3]
[380418980,1755751854997,-480.0,0.00022465,3]
[380418981,1755751855007,-480.0,0.00022465,3]
[380418982,1755751855016,-2193.69,0.00022465,3]
[380418983,1755751855025,-480.0,0.00022465,3]
[380418984,1755751855034,-3039.35,0.00022465,3]
[380418985,1755751855044,-480.0,0.00022465,3]
[380418986,1755751855053,-480.0,0.00022465,3]
[380418987,1755751855062,-480.0,0.00022465,3]
[380418988,1755751855073,-480.0,0.00022465,3]
[380418989,1755751855083,-594.48,0.00022465,3]
[380418990,1755751855092,-480.0,0.00022465,3]
[380418991,1755751855101,-4908.51,0.00022465,3]
[380418992,1755751855111,-480.0,0.00022465,3]
[380418993,1755751855121,-480.0,0.00022465,3]
[380418994,1755751855130,-480.0,0.00022465,3]
[380418995,1755751855139,-314.24531761,0.00022465,3]
[380418996,1755751855148,-480.0,0.00022465,3]
[380418997,1755751855158,-480.0,0.00022465,3]
[380418998,1755751855167,-480.0,0.00022465,3]
[380418999,1755751855176,-1156.21,0.00022465,3]
[380419000,1755751855186,-151.0,0.00022465,7]
[380419001,1755751855195,-480.0,0.00022465,3]
[380419002,1755751855204,-1481.45,0.00022465,3]
[380419003,1755751855215,-215.86710461,0.00022465,7]
[380419004,1755751855224,-177.230381,0.00022465,7]
[380419005,1755751855234,-4748.14,0.00022465,3]
[380419006,1755751855243,-151.0,0.00022465,7]
[380419007,1755751855253,-151.0,0.00022465,7]
[380419008,1755751855262,-576.14,0.00022465,3]
[380419009,1755751855271,-480.0,0.00022465,3]
[380419010,1755751855280,-480.0,0.00022465,3]
[380419011,1755751855290,-1224.91,0.00022465,3]
[380419012,1755751855299,-480.0,0.00022465,3]
[380419013,1755751855308,-550.54,0.00022465,3]
[380419014,1755751855317,-1306.73,0.00022465,3]
[380419015,1755751855327,-480.0,0.00022465,3]
[380419016,1755751855336,-480.0,0.00022465,3]
[380419017,1755751855345,-480.0,0.00022465,3]
[380419018,1755751855355,-1235.47,0.00022465,3]
[380419019,1755751855365,-480.0,0.00022465,3]
[380419020,1755751855375,-480.0,0.00022465,3]
[380419021,1755751855385,-286.1268,0.00022465,7]
[380419022,1755751855394,-480.0,0.00022465,3]
[380419023,1755751855404,-584.8,0.00022465,3]
[380419024,1755751855413,-4250.25,0.00022465,3]
[380419025,1755751855423,-698.77,0.00022465,3]
[380419026,1755751855432,-1644.08,0.00022465,3]
[380419027,1755751855442,-1510.18,0.00022465,3]
[380419028,1755751855452,-480.0,0.00022465,3]
[380419029,1755751855461,-1206.35,0.00022465,3]
[380419030,1755751855471,-151.0,0.00022465,7]
[380419031,1755751855480,-634.59,0.00022465,3]
[380419032,1755751855490,-1732.28,0.00022465,3]
[380419033,1755751855499,-480.0,0.00022465,3]
[380419034,1755751855508,-289.844918,0.00022465,7]
[380419035,1755751855518,-289.844918,0.00022465,7]
[380419036,1755751855527,-289.844918,0.00022465,7]
[380419037,1755751855536,-1439.72,0.00022465,3]
[380419038,1755751855546,-480.0,0.00022465,3]
[380419039,1755751855555,-151.0,0.00022465,7]
[380419040,1755751855564,-289.844918,0.00022465,7]
[380419041,1755751855573,-2042.79,0.00022465,3]
[380419042,1755751855583,-480.0,0.00022465,3]
[380419043,1755751855592,-480.0,0.00022465,3]
[380419044,1755751855602,-480.0,0.00022465,3]
[380419045,1755751855611,-544.52,0.00022465,3]
[380419046,1755751855620,-620.47,0.00022465,3]
[380419047,1755751855629,-480.0,0.00022465,3]
[380419048,1755751855637,-480.0,0.00022465,3]
[380419049,1755751855647,-730.15,0.00022465,3]
[380419050,1755751855656,-3008.75,0.00022465,3]
[380419051,1755751855665,-480.0,0.00022465,3]
[380419052,1755751855674,-627.67,0.00022465,3]
[380419053,1755751855686,-480.0,0.00022465,3]
[380419054,1755751855695,-151.0,0.00022465,7]
[380419055,1755751855704,-351.03770864,0.00022465,3]
[380419056,1755751855714,-654.02,0.00022465,3]
[380419057,1755751855725,-480.0,0.00022465,3]
[380419058,1755751855734,-151.0,0.00022465,7]
[380419059,1755751855743,-289.22622,0.00022465,3]
[380419060,1755751855753,-480.0,0.00022465,3]
[380419061,1755751855763,-511.9,0.00022465,3]
[380419062,1755751855774,-785.42,0.00022465,3]
[380419063,1755751855783,-1494.01,0.00022465,3]
[380419064,1755751855793,-518.97,0.00022465,3]
[380419065,1755751855803,-480.0,0.00022465,3]
[380419066,1755751855812,-480.0,0.00022465,3]
[380419067,1755751855822,-480.0,0.00022465,3]
[380419068,1755751855833,-2423.76,0.00022465,3]
[380419069,1755751855843,-715.44,0.00022465,3]
[380419070,1755751855854,-480.0,0.00022465,3]
[380419071,1755751855862,-604.93,0.00022465,3]
[380419072,1755751855873,-480.0,0.00022465,3]
[380419073,1755751855882,-1328.84,0.00022465,3]
[380419074,1755751855891,-496.5,0.00022465,3]
[380419075,1755751855943,-1285.14,0.00022465,3]
[380419076,1755751855952,-480.0,0.00022465,3]
[380419077,1755751855961,-480.0,0.00022465,3]
[380419078,1755751855969,-480.0,0.00022465,2]
[380419079,1755751855978,-795.89,0.00022465,3]
[380419080,1755751855989,-151.0,0.00022465,7]
[380419081,1755751855999,-480.0,0.00022465,3]
[380419082,1755751856009,-480.0,0.00022465,3]
[380419083,1755751856018,-151.0,0.00022465,7]
[380419084,1755751856028,-480.0,0.00022465,3]
[380419085,1755751856037,-565.22,0.00022465,3]
[380419086,1755751856047,-480.0,0.00022465,3]
[380419087,1755751856056,-480.0,0.00022465,3]
[380419088,1755751856066,-430.94726054,0.00022465,3]
[380419089,1755751856075,-480.0,0.00022465,3]
[380419090,1755751856084,-151.0,0.00022465,7]
[380419091,1755751856093,-1007.67,0.00022465,3]
[380419092,1755751856102,-480.0,0.00022465,3]
[380419093,1755751856111,-169.014893,0.00022465,7]
[380419094,1755751856120,-349.87376623,0.00022465,3]
[380419095,1755751856349,-130.12623377,0.00022465,3]
[380419096,1755751856359,-480.0,0.00022465,3]
[380419097,1755751856368,-5194.52254593,0.00022465,3]
[380419098,1755751856391,-500.0,0.00021917,3]
[380419099,1755751856400,-613.83411424,0.00022465,3]
[380419100,1755751856991,-199.0,0.00021807,10]
[380419101,1755751857001,-235.4,0.00021907,10]
[380419102,1755751857010,-949.59,0.00021917,3]
[380419103,1755751857020,-480.0,0.00021917,3]
[380419104,1755751857029,-480.0,0.00021917,3]
[380419105,1755751857038,-500.0,0.00021929,3]
[380419106,1755751857047,-500.0,0.00021938,3]
[380419107,1755751857057,-500.0,0.00021938,3]
[380419108,1755751857066,-500.0,0.00021938,3]
[380419109,1755751857075,-424.40981745,0.00021939,3]
[380419110,1755751857087,-75.59018255,0.00021939,3]
[380419111,1755751857096,-500.0,0.00021939,3]
[380419112,1755751857106,-500.0,0.00021939,3]
[380419113,1755751857115,-500.0,0.00021941,3]
[380419114,1755751857124,-342.16726125,0.00021941,3]
[380419115,1755751857306,-35.55771997,0.00021941,3]
[380419116,1755751857318,-122.27501878,0.00021941,3]
[380419117,1755751857328,-500.0,0.00021941,3]
[380419118,1755751857337,-500.0,0.00021941,3]
[380419119,1755751857346,-500.0,0.00021941,3]
[380419120,1755751857356,-500.0,0.00021941,3]
[380419121,1755751857370,-949.59,0.00022191,3]
[380419122,1755751857380,-480.0,0.00022191,3]
[380419123,1755751857390,-641.30333983,0.00022465,3]
[380419124,1755751857399,-169.014893,0.00022465,7]
[380419125,1755751857409,-169.014893,0.00022465,7]
[380419126,1755751857418,-480.0,0.00022465,3]
[380419127,1755751857427,-480.0,0.00022465,3]
[380419128,1755751857437,-169.014893,0.00022465,7]
[380419129,1755751857446,-426.072767,0.00022465,7]
[380419130,1755751857456,-426.072767,0.00022465,7]
[380419131,1755751857465,-151.0,0.00022465,7]
[380419132,1755751857475,-151.0,0.00022465,7]
[380419133,1755751857484,-426.072767,0.00022465,7]
[380419134,1755751857494,-426.072767,0.00022465,7]
[380419135,1755751857503,-181.646454,0.00022465,7]
[380419136,1755751857512,-426.072767,0.00022465,7]
[380419137,1755751857522,-848.39,0.00022465,3]
[380419138,1755751857531,-1000.0,0.00022465,3]
[380419139,1755751857541,-513.41,0.00022465,3]
[380419140,1755751857550,-426.072767,0.00022465,7]
[380419141,1755751857560,-426.072767,0.00022465,7]
[380419142,1755751857570,-426.07276646,0.00022465,7]
[380419143,1755751857580,-2253.89,0.00022465,3]
[380419144,1755751857590,-480.0,0.00022465,3]
[380419145,1755751857599,-480.0,0.00022465,3]
[380419146,1755751857609,-480.0,0.00022465,3]
[380419147,1755751857619,-480.0,0.00022465,3]
[380419148,1755751857628,-480.0,0.00022465,3]
[380419149,1755751857638,-2775.55,0.00022465,3]
[380419150,1755751857647,-480.0,0.00022465,3]
[380419151,1755751857657,-524.45,0.00022465,3]
[380419152,1755751857667,-2325.53,0.00022465,3]
[380419153,1755751857677,-1158.97,0.00022465,3]
[380419154,1755751857691,-480.0,0.00022465,3]
[380419155,1755751857701,-500.48,0.00022465,3]
[380419156,1755751857711,-2141.31,0.00022465,3]
[380419157,1755751857720,-480.0,0.00022465,3]
[380419158,1755751857731,-480.0,0.00022465,3]
[380419159,1755751857741,-480.0,0.00022465,3]
[380419160,1755751857751,-4299.44,0.00022465,3]
[380419161,1755751857761,-480.0,0.00022465,3]
[380419162,1755751857770,-480.0,0.00022465,3]
[380419163,1755751857780,-617.13,0.00022465,3]
[380419164,1755751857790,-580.0,0.00022465,3]
[380419165,1755751857800,-2343.66,0.00022465,3]
[380419166,1755751857810,-480.0,0.00022465,3]
[380419167,1755751857819,-480.0,0.00022465,3]
[380419168,1755751857829,-480.0,0.00022465,3]
[380419169,1755751857839,-480.0,0.00022465,3]
[380419170,1755751857850,-480.0,0.00022465,3]
[380419171,1755751857859,-390.4199291,0.00022465,3]
[380419172,1755751857869,-480.0,0.00022465,3]
[380419173,1755751857879,-1595.91,0.00022465,3]
[380419174,1755751857889,-151.0,0.00022465,7]
[380419175,1755751857898,-151.0,0.00022465,7]
[380419176,1755751857908,-817.32,0.00022465,3]
[380419177,1755751857918,-811.07,0.00022465,3]
[380419178,1755751857927,-151.0,0.00022465,7]
[380419179,1755751857937,-153.684526,0.00022465,7]
[380419180,1755751857946,-480.0,0.00022465,3]
[380419181,1755751857956,-480.0,0.00022465,3]
[380419182,1755751857965,-480.0,0.00022465,3]
[380419183,1755751857976,-679.77,0.00022465,3]
[380419184,1755751857986,-480.0,0.00022465,2]
[380419185,1755751857996,-480.0,0.00022465,3]
[380419186,1755751858006,-480.0,0.00022465,3]
[380419187,1755751858016,-949.59,0.00022465,3]
[380419188,1755751858026,-480.0,0.00022465,3]
[380419189,1755751858036,-351.81052272,0.00022473,2]
[380419190,1755751858046,-500.0,0.00022473,2]
[380419191,1755751858056,-500.0,0.00022473,2]
[380419192,1755751858066,-485.49040514,0.00022487,3]
[380419193,1755751858076,-351.82407862,0.00022487,3]
[380419194,1755751858086,-480.0,0.00022487,3]
[380419195,1755751858096,-480.0,0.00022487,3]
[380419196,1755751858106,-480.0,0.00022487,3]
[380419197,1755751858116,-480.0,0.00022487,3]
[380419198,1755751858125,-480.0,0.00022487,3]
[380419199,1755751858136,-480.0,0.00022487,3]
[380419200,1755751858146,-480.0,0.00022487,3]
[380419201,1755751858155,-480.0,0.00022487,3]
[380419202,1755751858164,-480.0,0.00022487,3]
[380419203,1755751858174,-480.0,0.00022487,3]
[380419204,1755751858185,-480.0,0.00022487,3]
[380419205,1755751858195,-480.0,0.00022487,3]
[380419206,1755751858205,-481.51006928,0.00022487,3]
[380419207,1755751858215,-480.0,0.00022487,3]
[380419208,1755751858224,-480.0,0.00022487,3]
[380419209,1755751858235,-480.0,0.00022487,3]
[380419210,1755751858244,-480.0,0.00022487,3]
[380419211,1755751858254,-480.0,0.00022487,3]
[380419212,1755751858264,-612.36,0.00022487,3]
[380419213,1755751858275,-480.0,0.00022487,3]
[380419214,1755751858289,-480.0,0.00022487,3]
[380419215,1755751858299,-480.0,0.00022487,3]
[380419216,1755751858309,-483.9905132,0.00022487,3]
[380419217,1755751858319,-1356.09,0.00022487,3]
[380419218,1755751858329,-480.0,0.00022487,3]
[380419219,1755751858339,-480.0,0.00022487,3]
[380419220,1755751858348,-480.0,0.00022487,3]
[380419221,1755751858358,-480.0,0.00022487,3]
[380419222,1755751858368,-1308.43,0.00022487,3]
[380419223,1755751858377,-480.0,0.00022487,3]
[380419224,1755751858387,-480.0,0.00022487,3]
[380419225,1755751858397,-580.14,0.00022487,3]
[380419226,1755751858407,-150.2219694,0.00022487,3]
[380419227,1755751858417,-480.0,0.00022487,3]
[380419228,1755751858427,-480.0,0.00022487,3]
[380419229,1755751858437,-480.0,0.00022487,3]
[380419230,1755751858447,-480.0,0.00022487,3]
[380419231,1755751858456,-480.0,0.00022487,3]
[380419232,1755751858466,-480.0,0.00022487,3]
[380419233,1755751858479,-480.0,0.00022487,3]
[380419234,1755751858490,-480.0,0.00022487,3]
[380419235,1755751858500,-480.0,0.00022487,3]
[380419236,1755751858510,-895.94,0.00022487,3]
[380419237,1755751858520,-480.0,0.00022487,3]
[380419238,1755751858530,-480.0,0.00022487,3]
[380419239,1755751858541,-360.3461697,0.00022487,3]
[380419240,1755751858551,-480.0,0.00022487,3]
[380419241,1755751858560,-482.36071077,0.00022487,3]
[380419242,1755751858570,-480.0,0.00022487,3]
[380419243,1755751858580,-480.0,0.00022487,3]
[380419244,1755751858590,-480.0,0.00022487,3]
[380419245,1755751858600,-480.0,0.00022487,3]
[380419246,1755751858609,-480.0,0.00022487,3]
[380419247,1755751858620,-480.0,0.00022487,3]
[380419248,1755751858630,-480.0,0.00022487,3]
[380419249,1755751858640,-480.0,0.00022487,3]
[380419250,1755751858649,-463.29672371,0.00022487,3]
[380419251,1755751858659,-480.0,0.00022487,3]
[380419252,1755751858669,-480.0,0.00022487,3]
[380419253,1755751858680,-480.0,0.00022487,3]
[380419254,1755751858689,-480.0,0.00022487,3]
[380419255,1755751858699,-480.0,0.00022487,3]
[380419256,1755751858709,-480.0,0.00022487,3]
[380419257,1755751858719,-480.0,0.00022487,3]
[380419258,1755751858729,-577.14388595,0.00022487,3]
[380419259,1755751858740,-480.0,0.00022487,3]
[380419260,1755751858750,-480.0,0.00022487,3]
[380419261,1755751858759,-480.0,0.00022487,3]
[380419262,1755751858770,-480.0,0.00022487,3]
[380419263,1755751858780,-480.0,0.00022487,3]
[380419264,1755751858789,-480.0,0.00022487,3]
[380419265,1755751858799,-480.0,0.00022487,3]
[380419266,1755751858809,-348.95691357,0.00022487,3]
[380419267,1755751858818,-480.0,0.00022487,3]
[380419268,1755751858828,-480.0,0.00022487,3]
[380419269,1755751858838,-615.87201727,0.00022487,3]
[380419270,1755751858848,-480.0,0.00022487,3]
[380419271,1755751858858,-480.0,0.00022487,3]
[380419272,1755751858868,-334.95888992,0.00022487,3]
[380419273,1755751858878,-480.0,0.00022487,3]
[380419274,1755751858887,-480.0,0.00022487,3]
[380419275,1755751858897,-495.92,0.00022487,3]
[380419276,1755751858908,-404.6656396,0.00022487,3]
[380419277,1755751858918,-500.0,0.00022487,3]
[380419278,1755751858928,-480.0,0.00022487,3]
[380419279,1755751858941,-480.0,0.00022487,3]
[380419280,1755751858955,-480.0,0.00022487,3]
[380419281,1755751858965,-314.09120612,0.00022487,3]
[380419282,1755751858975,-271.9826145,0.00022487,3]
[380419283,1755751858985,-480.0,0.00022487,3]
[380419284,1755751858996,-480.0,0.00022487,3]
[380419285,1755751859006,-480.0,0.00022487,3]
[380419286,1755751859015,-480.0,0.00022487,3]
[380419287,1755751859025,-480.0,0.00022487,3]
[380419288,1755751859035,-480.0,0.00022487,3]
[380419289,1755751859044,-480.0,0.00022487,3]
[380419290,1755751859054,-480.0,0.00022487,3]
[380419291,1755751859065,-467.59769003,0.00022487,3]
[380419292,1755751859079,-480.0,0.00022487,3]
[380419293,1755751859088,-480.0,0.00022487,3]
[380419294,1755751859097,-480.0,0.00022487,3]
[380419295,1755751859107,-480.0,0.00022487,3]
[380419296,1755751859116,-480.0,0.00022487,3]
[380419297,1755751859126,-480.0,0.00022487,3]
[380419298,1755751859136,-480.0,0.00022487,3]
[380419299,1755751859146,-520.04,0.00022487,3]
[380419300,1755751859156,-480.0,0.00022487,3]
[380419301,1755751859167,-744.23,0.00022487,3]
[380419302,1755751859176,-480.0,0.00022487,3]
[380419303,1755751859186,-584.73,0.00022487,3]
[380419304,1755751859196,-217.593718,0.00022487,7]
[380419305,1755751859206,-480.0,0.00022487,3]
[380419306,1755751859216,-439.72513874,0.00022487,3]
[380419307,1755751859227,-151.0,0.00022487,7]
[380419308,1755751859237,-170.097402,0.00022487,7]
[380419309,1755751859247,-480.0,0.00022487,3]
[380419310,1755751859257,-480.0,0.00022487,3]
[380419311,1755751859267,-480.0,0.00022487,3]
[380419312,1755751859278,-151.0,0.00022487,7]
[380419313,1755751859288,-480.0,0.00022487,3]
[380419314,1755751859298,-151.0,0.00022487,7]
[380419315,1755751859308,-480.0,0.00022487,3]
[380419316,1755751859317,-151.0,0.00022487,7]
[380419317,1755751859327,-480.0,0.00022487,3]
[380419318,1755751859336,-480.0,0.00022487,3]
[380419319,1755751859346,-480.0,0.00022487,3]
[380419320,1755751859356,-480.0,0.00022487,3]
[380419321,1755751859366,-151.0,0.00022487,7]
[380419322,1755751859377,-430.50486297,0.00022487,3]
[380419323,1755751859387,-251.14789,0.00022487,7]
[380419324,1755751859397,-151.0,0.00022487,7]
[380419325,1755751859407,-289.844918,0.00022487,7]
[380419326,1755751859417,-480.0,0.00022487,3]
[380419327,1755751859427,-289.844918,0.00022487,7]
[380419328,1755751859438,-289.844918,0.00022487,7]
[380419329,1755751859447,-289.844926,0.00022487,7]
[380419330,1755751859457,-480.0,0.00022487,3]
[380419331,1755751859467,-480.0,0.00022487,3]
[380419332,1755751859477,-151.0,0.00022487,7]
[380419333,1755751859487,-480.0,0.00022487,3]
[380419334,1755751859497,-151.0,0.00022487,7]
[380419335,1755751859507,-151.0,0.00022487,7]
[380419336,1755751859517,-412.53302531,0.00022487,3]
[380419337,1755751859527,-463.5956603,0.00022487,3]
[380419338,1755751859537,-151.0,0.00022487,7]
[380419339,1755751859547,-480.0,0.00022487,3]
[380419340,1755751859557,-169.014893,0.00022487,7]
[380419341,1755751859567,-169.014893,0.00022487,7]
[380419342,1755751859576,-169.014893,0.00022487,7]
[380419343,1755751859586,-169.014899,0.00022487,7]
[380419344,1755751859597,-713.76,0.00022487,3]
[380419345,1755751859607,-480.0,0.00022487,3]
[380419346,1755751859620,-577.30666104,0.00022487,3]
[380419347,1755751859630,-480.0,0.00022487,3]
[380419348,1755751859639,-481.24619718,0.00022487,3]
[380419349,1755751859649,-543.63902022,0.00022487,3]
[380419350,1755751859658,-480.0,0.00022487,3]
[380419351,1755751859668,-480.0,0.00022488,3]
[380419352,1755751859679,-480.0,0.00022488,3]
[380419353,1755751859692,-620.94,0.00022488,3]
[380419354,1755751859701,-480.0,0.00022488,3]
[380419355,1755751859711,-480.0,0.00022488,3]
[380419356,1755751859720,-480.0,0.00022488,3]
[380419357,1755751859732,-480.0,0.00022488,3]
[380419358,1755751859742,-480.0,0.00022488,3]
[380419359,1755751859753,-480.0,0.00022488,3]
[380419360,1755751859762,-480.0,0.00022488,3]
[380419361,1755751859773,-480.0,0.00022488,3]
[380419362,1755751859783,-480.0,0.00022488,3]
[380419363,1755751859793,-480.0,0.00022488,3]
[380419364,1755751859803,-657.71,0.00022488,3]
[380419365,1755751859813,-722.99,0.00022488,3]
[380419366,1755751859823,-480.0,0.00022488,3]
[380419367,1755751859833,-480.0,0.00022488,3]
[380419368,1755751859844,-480.0,0.00022488,3]
[380419369,1755751860016,-480.0,0.00022488,3]
[380419370,1755751860039,-480.0,0.00022488,3]
[380419371,1755751860049,-480.0,0.00022488,3]
[380419372,1755751860060,-159.707259,0.00022488,7]
[380419373,1755751860070,-219.72899,0.00022488,7]
[380419374,1755751860080,-205.932385,0.00022488,7]
[380419375,1755751860090,-205.932385,0.00022488,7]
[380419376,1755751860099,-205.932385,0.00022488,7]
[380419377,1755751860107,-205.932393,0.00022488,7]
[380419378,1755751860117,-159.707259,0.00022488,7]
[380419379,1755751860128,-159.707259,0.00022488,7]
[380419380,1755751860137,-151.0,0.00022488,7]
[380419381,1755751860146,-159.707259,0.00022488,7]
[380419382,1755751860155,-469.4662772,0.00022488,2]
[380419383,1755751860165,-480.0,0.0002249,3]
[380419384,1755751860175,-480.0,0.0002249,3]
[380419385,1755751860184,-151.0,0.0002249,7]
[380419386,1755751860194,-480.0,0.0002249,3]
[380419387,1755751860203,-602.68699998,0.0002249,3]
[380419388,1755751860212,-480.0,0.0002249,3]
[380419389,1755751860222,-480.0,0.0002249,3]
[380419390,1755751860232,-480.0,0.0002249,3]
[380419391,1755751860242,-480.0,0.0002249,3]
[380419392,1755751860252,-480.0,0.0002249,3]
[380419393,1755751860262,-480.0,0.0002249,3]
[380419394,1755751860272,-402.61314327,0.0002249,3]
[380419395,1755751860281,-464.11070075,0.0002249,3]
[380419396,1755751860292,-480.0,0.0002249,3]
[380419397,1755751860301,-480.0,0.0002249,3]
[380419398,1755751860310,-480.0,0.0002249,3]
[380419399,1755751860320,-151.0,0.0002249,7]
[380419400,1755751860330,-194.876025,0.0002249,7]
[380419401,1755751860339,-480.0,0.0002249,3]
[380419402,1755751860349,-221.973423,0.0002249,7]
[380419403,1755751860360,-221.973423,0.0002249,7]
[380419404,1755751860370,-221.973423,0.0002249,7]
[380419405,1755751860380,-221.973426,0.0002249,7]
[380419406,1755751860390,-480.0,0.0002249,3]
[380419407,1755751860399,-480.0,0.0002249,3]
[380419408,1755751860409,-480.0,0.0002249,3]
[380419409,1755751860419,-292.969927,0.00022492,7]
[380419410,1755751860428,-151.0,0.00022492,7]
[380419411,1755751860438,-160.0,0.000225,2]
[380419412,1755751860447,-2099.68019044,0.00022502,2]
[380419413,1755751860458,-1000.0,0.00022521,2]
[380419414,1755751860468,-167.22082437,0.00022521,2]
[380419415,1755751860478,-1000.0,0.00022521,2]
[380419416,1755751860489,-504.72793019,0.00022521,2]
[380419417,1755751860499,-589.35663462,0.00022521,2]
[380419418,1755751860508,-1000.0,0.00022521,2]
[380419419,1755751860518,-2228.88068496,0.00022527,2]
[380419420,1755751860529,-716.40028556,0.00022629,2]
[380419421,1755751860539,-420.0,0.00022667,2]
[380419422,1755751860548,-411.64993801,0.00022706,2]
[380419423,1755751860558,-500.0,0.00022721,2]
[380419424,1755751860568,-1006.50019155,0.00022721,2]
[380419425,1755751860578,-504.0734374,0.00022721,2]
[380419426,1755751860588,-397.23507294,0.00022721,2]
[380419427,1755751860598,-1000.0,0.00022721,2]
[380419428,1755751860608,-1000.0,0.00022721,2]
[380419429,1755751860618,-1192.0,0.0002273,2]